bitfinex/quotes_SOLUSD_20250305
["timestamp","ask_amount","ask_price","bid_price","bid_amount"]
[1741139454333,33.1361294,144.54,144.53,0.033]
[1741139454526,26.2176294,144.54,144.53,0.033]
[1741139454709,25.93330626,144.55,144.53,0.033]
[1741139455928,81.8,144.56,144.53,0.033]
[1741139457035,107.73330626,144.56,144.53,0.033]
[1741139457430,81.8,144.56,144.53,0.033]
[1741139458525,81.83,144.59,144.54,25.93330626]
[1741139458714,0.03,144.59,144.54,25.93330626]
[1741139458917,0.03,144.59,144.55,25.93330626]
[1741139459529,0.03,144.59,144.57,25.93330626]
[1741139459739,0.03,144.59,144.58,25.93330626]
[1741139460644,0.03,144.59,144.58,32.84980626]
[1741139461949,0.03,144.59,144.58,114.7341294]
[1741139462117,0.0001,144.59,144.58,116.3707294]
[1741139463250,81.83,144.71,144.61,20.0]
[1741139463426,81.83,144.71,144.67,25.93330626]
[1741139463619,0.03,144.71,144.67,25.93330626]
[1741139463932,0.03,144.71,144.69,25.93330626]
[1741139464336,0.03,144.71,144.68,25.93330626]
[1741139464528,0.03,144.71,144.69,6.9113]
[1741139465244,10.70507721,144.78,144.7,26.2176294]
[1741139465419,10.70507721,144.78,144.73,25.93330626]
[1741139465622,10.70507721,144.78,144.73,107.53330626]
[1741139466033,25.93330626,144.77,144.71,25.93330626]
[1741139466743,25.93330626,144.77,144.71,32.84320626]
[1741139466936,25.93330626,144.76,144.71,6.9099]
[1741139467137,25.93330626,144.77,144.71,32.84320626]
[1741139467646,81.8,144.78,144.73,25.93330626]
[1741139467823,25.93330626,144.8,144.74,25.93330626]
[1741139468023,25.93330626,144.79,144.73,107.53330626]
[1741139468647,81.8,144.81,144.74,6.9089]
[1741139468946,25.93330626,144.79,144.74,6.9089]
[1741139470461,81.8,144.81,144.75,25.93330626]
[1741139470759,81.8,144.81,144.76,25.93330626]
[1741139471538,107.73330626,144.81,144.75,25.93330626]
[1741139471832,1.8699814,144.84,144.75,81.6]
[1741139472140,25.93330626,144.83,144.77,25.93330626]
[1741139472537,27.80328766,144.84,144.78,32.83990626]
[1741139472738,25.93330626,144.82,144.78,81.6]
[1741139472940,25.93330626,144.79,144.78,81.6]
[1741139473155,25.93330626,144.79,144.74,13.482]
[1741139473371,25.93330626,144.81,144.75,25.93330626]
[1741139473747,25.93330626,144.79,144.74,88.1731]
[1741139474049,25.93330626,144.76,144.71,6.9103]
[1741139474368,25.93330626,144.76,144.71,114.44360626]
[1741139474571,25.93330626,144.77,144.72,25.93330626]
[1741139474751,25.93330626,144.77,144.71,114.44360626]
[1741139475262,81.8,144.8,144.67,25.93330626]
[1741139475263,25.93330626,144.73,144.67,25.93330626]
[1741139475567,25.93330626,144.72,144.67,88.5119]
[1741139475861,25.93330626,144.71,144.67,81.6]
[1741139476045,25.93330626,144.71,144.66,6.3601]
[1741139476261,81.8,144.74,144.66,39.20590626]
[1741139476262,25.93330626,144.72,144.66,39.20590626]
[1741139476562,81.8,144.83,144.75,6.9084]
[1741139476770,1.8999814,144.84,144.78,25.93330626]
[1741139477066,1.8999814,144.84,144.79,25.93330626]
[1741139477463,1.8999814,144.84,144.78,25.93330626]
[1741139477646,25.93330626,144.83,144.76,87.9692]
[1741139477967,25.93330626,144.83,144.77,25.93330626]
[1741139478541,1.8999814,144.84,144.76,87.9692]
[1741139478757,25.93330626,144.81,144.76,94.877]
[1741139478948,25.93330626,144.82,144.76,120.81030626]
[1741139479565,81.8,144.83,144.78,25.93330626]
[1741139479766,25.93330626,144.82,144.76,87.9692]
[1741139480274,25.93330626,144.82,144.76,113.90250626]
[1741139480458,25.93330626,144.8,144.76,87.9692]
[1741139480773,25.93330626,144.77,144.72,6.5627]
[1741139480978,81.8,144.81,144.75,25.93330626]
[1741139481143,81.8,144.81,144.76,25.93330626]
[1741139482657,25.93330626,144.8,144.74,25.93330626]
[1741139483357,25.93330626,144.79,144.73,25.93330626]
[1741139483748,25.93330626,144.79,144.72,95.0725]
[1741139483949,25.93330626,144.79,144.73,25.93330626]
[1741139484161,107.73330626,144.8,144.74,25.93330626]
[1741139484575,114.63950626,144.8,144.73,25.93330626]
[1741139484756,25.93330626,144.79,144.72,114.09600626]
[1741139484962,25.93330626,144.78,144.72,114.09600626]
[1741139485179,81.8,144.79,144.75,25.93330626]
[1741139485475,5.94,144.81,144.75,25.93330626]
[1741139485775,25.93330626,144.8,144.73,25.93330626]
[1741139486072,25.93330626,144.8,144.74,25.93330626]
[1741139486570,31.87330626,144.81,144.74,25.93330626]
[1741139486774,25.93330626,144.8,144.74,25.93330626]
[1741139486957,25.93330626,144.79,144.72,114.09600626]
[1741139487157,25.93330626,144.78,144.72,6.5627]
[1741139487462,25.93330626,144.76,144.7,32.84400626]
[1741139487660,25.93330626,144.77,144.71,25.93330626]
[1741139487851,107.73330626,144.77,144.71,25.93330626]
[1741139488052,107.73330626,144.77,144.7,32.84400626]
[1741139488355,25.93330626,144.75,144.69,107.53330626]
[1741139488553,32.84270626,144.74,144.68,25.93330626]
[1741139489063,25.93330626,144.73,144.67,32.84540626]
[1741139489464,25.93330626,144.73,144.67,6.9121]
[1741139489777,25.93330626,144.73,144.67,32.84540626]
[1741139490147,107.73330626,144.74,144.67,32.84540626]
[1741139490861,81.8,144.74,144.68,25.93330626]
[1741139491048,81.8,144.74,144.69,25.93330626]
[1741139492390,81.8,144.74,144.68,25.93330626]
[1741139492567,6.9084,144.75,144.68,107.53330626]
[1741139492766,25.93330626,144.76,144.7,25.93330626]
[1741139493269,0.03,144.79,144.73,25.93330626]
[1741139493459,0.03,144.79,144.74,25.93330626]
[1741139493666,32.86990626,144.79,144.73,25.93330626]
[1741139494391,32.86990626,144.79,144.72,25.93330626]
[1741139494578,25.93330626,144.76,144.7,107.53330626]
[1741139494882,32.84140626,144.76,144.7,81.6]
[1741139495081,25.93330626,144.77,144.71,25.93330626]
[1741139495384,25.93330626,144.77,144.7,107.53330626]
[1741139495683,25.93330626,144.76,144.7,107.53330626]
[1741139495858,25.93330626,144.75,144.7,81.6]
[1741139496892,25.93330626,144.72,144.66,114.47890626]
[1741139497185,81.8,144.74,144.69,25.93330626]
[1741139497396,81.8,144.74,144.66,88.5456]
[1741139497397,107.73330626,144.74,144.68,25.93330626]
[1741139497572,25.93330626,144.73,144.66,88.5456]
[1741139497890,25.93330626,144.72,144.66,114.47900626]
[1741139498195,107.73330626,144.73,144.67,25.93330626]
[1741139498883,25.93330626,144.71,144.66,0.033]
[1741139499390,114.64310626,144.72,144.66,25.96630626]
[1741139500461,25.93330626,144.71,144.66,0.033]
[1741139501096,32.84410626,144.71,144.66,0.033]
[1741139501469,25.93330626,144.69,144.66,0.033]
[1741139501670,25.93330626,144.68,144.66,0.033]
[1741139502193,81.8,144.69,144.66,0.033]
[1741139502393,107.73330626,144.69,144.66,0.033]
[1741139502693,81.8,144.69,144.66,0.033]
[1741139502994,34.46470626,144.72,144.66,25.96630626]
[1741139503590,25.93330626,144.71,144.66,0.033]
[1741139503771,34.46470626,144.72,144.66,0.033]
[1741139504092,27.55470626,144.72,144.66,32.87890626]
[1741139504395,1.6214,144.72,144.66,32.87890626]
[1741139505688,107.73330626,144.73,144.67,25.93330626]
[1741139505889,0.03,144.74,144.71,25.93330626]
[1741139506073,0.03,144.74,144.72,25.93330626]
[1741139506690,0.03,144.74,144.71,25.93330626]
[1741139506969,0.03,144.74,144.7,32.84410626]
[1741139507292,0.03,144.74,144.71,25.93330626]
[1741139508595,0.03,144.74,144.72,25.93330626]
[1741139509095,0.03,144.74,144.7,32.84410626]
[1741139509293,0.03,144.74,144.7,25.93330626]
[1741139509499,0.03,144.74,144.69,25.93330626]
[1741139509799,25.93330626,144.73,144.67,25.93330626]
[1741139510006,107.73330626,144.73,144.67,25.93330626]
[1741139510183,25.93330626,144.72,144.66,114.47890626]
[1741139510499,107.73330626,144.72,144.66,25.96630626]
[1741139510673,6.9103,144.71,144.66,25.96630626]
[1741139511501,81.8,144.72,144.69,25.93330626]
[1741139512005,0.03,144.74,144.71,25.93330626]
[1741139512501,0.03,144.74,144.7,25.93330626]
[1741139512703,0.03,144.74,144.71,25.93330626]
[1741139513082,0.03,144.74,144.72,25.93330626]
[1741139513286,0.03,144.74,144.73,25.93330626]
[1741139514791,0.03,144.74,144.73,32.84270626]
[1741139514995,0.03,144.74,144.71,32.84350626]
[1741139515298,0.03,144.74,144.71,25.93330626]
[1741139515597,0.03,144.74,144.7,32.84400626]
[1741139515796,0.03,144.74,144.7,25.93330626]
[1741139515972,0.03,144.74,144.69,32.84450626]
[1741139516174,25.96330626,144.74,144.71,0.033]
[1741139516373,25.93330626,144.73,144.71,0.033]
[1741139516871,6.9094,144.73,144.71,0.033]
[1741139517076,32.84270626,144.73,144.71,0.033]
[1741139518300,32.87230626,144.74,144.71,0.033]
[1741139518703,6.939,144.74,144.71,0.033]
[1741139518999,0.03,144.74,144.71,0.033]
[1741139519301,81.83,144.74,144.71,0.033]
[1741139519682,107.76330626,144.74,144.71,0.033]
[1741139519882,25.93330626,144.73,144.71,0.033]
[1741139520079,107.73330626,144.72,144.71,0.033]
[1741139521203,114.64310626,144.72,144.71,0.033]
[1741139521374,0.28432314,144.71,144.66,0.033]
[1741139521579,25.93330626,144.68,144.66,0.033]
[1741139522078,107.73330626,144.69,144.66,0.033]
[1741139523104,81.8,144.69,144.66,0.033]
[1741139523402,88.7114,144.69,144.66,0.033]
[1741139523903,81.8,144.69,144.66,0.033]
[1741139524086,81.8,144.69,144.66,25.96630626]
[1741139524486,27.52890626,144.72,144.66,25.96630626]
[1741139524695,1.5956,144.72,144.67,25.93330626]
[1741139524906,114.64280626,144.73,144.68,25.93330626]
[1741139525092,81.8,144.73,144.68,25.93330626]
[1741139525292,81.8,144.73,144.68,32.84490626]
[1741139525493,88.7094,144.73,144.68,32.84490626]
[1741139525891,114.64270626,144.73,144.68,25.93330626]
[1741139526099,114.64270626,144.73,144.66,25.96630626]
[1741139526303,114.64270626,144.73,144.67,25.93330626]
[1741139526609,81.8,144.73,144.69,25.93330626]
[1741139526791,88.7096,144.73,144.68,25.93330626]
[1741139527175,88.7096,144.73,144.67,25.93330626]
[1741139527407,114.64290626,144.73,144.67,25.93330626]
[1741139528011,25.93330626,144.72,144.66,107.56630626]
[1741139528315,81.8,144.72,144.67,25.93330626]
[1741139529187,81.8,144.72,144.68,25.93330626]
[1741139529388,81.83,144.72,144.7,25.93330626]
[1741139529582,0.03,144.72,144.7,25.93330626]
[1741139530714,0.03,144.72,144.69,25.93330626]
[1741139530882,0.03,144.72,144.68,25.93330626]
[1741139531078,6.94,144.72,144.67,107.53330626]
[1741139531292,6.94,144.72,144.67,25.93330626]
[1741139531908,88.74,144.72,144.67,25.93330626]
[1741139532113,81.83,144.72,144.69,25.93330626]
[1741139532544,0.03,144.72,144.69,25.93330626]
[1741139532823,0.03,144.72,144.7,25.93330626]
[1741139533524,0.03,144.72,144.7,32.84370626]
[1741139533942,0.03,144.72,144.71,25.93330626]
[1741139534608,0.03,144.72,144.7,25.93330626]
[1741139534811,0.03,144.72,144.69,25.93330626]
[1741139535513,0.03,144.72,144.68,107.53330626]
[1741139536062,0.03,144.72,144.69,25.93330626]
[1741139536402,0.03,144.72,144.68,107.53330626]
[1741139536932,0.03,144.72,144.69,25.93330626]
[1741139537305,0.03,144.72,144.7,25.93330626]
[1741139537819,0.03,144.72,144.71,25.93330626]
[1741139538029,0.03,144.72,144.7,32.84400626]
[1741139538208,0.03,144.72,144.69,25.93330626]
[1741139538409,0.03,144.72,144.68,107.53330626]
[1741139538624,0.03,144.72,144.69,25.93330626]
[1741139539035,0.03,144.72,144.7,25.93330626]
[1741139539418,0.03,144.72,144.68,107.53330626]
[1741139539936,0.03,144.72,144.7,25.93330626]
[1741139540115,0.03,144.72,144.71,25.93330626]
[1741139540514,0.03,144.74,144.73,20.0]
[1741139540734,0.03,144.74,144.73,108.1266]
[1741139541230,0.03,144.74,144.73,124.20568213]
[1741139541403,0.03,144.79,144.78,16.07908213]
[1741139542332,0.03,144.79,144.76,16.07908213]
[1741139542535,0.03,144.79,144.75,25.72552515]
[1741139542742,0.03,144.79,144.74,81.6]
[1741139543109,0.03,144.79,144.74,107.32552515]
[1741139543741,0.03,144.79,144.77,25.72552515]
[1741139544536,0.03,144.79,144.78,25.72552515]
[1741139546220,0.03,144.79,144.78,107.60984829]
[1741139546414,0.03,144.79,144.78,114.51684829]
[1741139547115,0.03,144.79,144.78,120.60364829]
[1741139547320,1.8699814,144.84,144.83,58.63997344]
[1741139547524,1.8699814,144.84,144.83,148.45747344]
[1741139547719,8.14e-05,144.84,144.83,148.45747344]
[1741139547951,10.70507721,144.91,144.87,0.28432314]
[1741139548114,10.70507721,144.91,144.9,25.72552515]
[1741139548323,0.03,144.94,144.9,133.0510503]
[1741139548530,0.03,144.94,144.93,25.72552515]
[1741139548736,0.03,144.94,144.93,107.32552515]
[1741139549428,0.798789,144.94,144.93,114.22532515]
[1741139549752,0.798789,144.94,144.93,107.32552515]
[1741139549954,0.798789,144.94,144.91,107.32552515]
[1741139550128,0.798789,144.94,144.91,81.6]
[1741139550323,0.798789,144.94,144.91,107.32552515]
[1741139550523,0.798789,144.94,144.91,25.72552515]
[1741139550941,0.798789,144.94,144.88,81.6]
[1741139551146,0.798789,144.94,144.89,25.72552515]
[1741139551426,7.698189,144.94,144.88,107.32552515]
[1741139551749,0.798789,144.94,144.9,25.72552515]
[1741139552325,33.42371415,144.94,144.88,25.72552515]
[1741139552559,0.798789,144.94,144.9,25.72552515]
[1741139553241,0.798789,144.94,144.93,25.72552515]
[1741139553445,0.798789,144.94,144.93,120.98564829]
[1741139553636,0.798789,144.94,144.93,120.70132515]
[1741139554042,0.798789,144.94,144.93,32.20152515]
[1741139554228,0.798789,144.94,144.93,39.10132515]
[1741139554941,0.798789,144.94,144.93,6.476]
[1741139555139,0.798789,144.94,144.93,39.10132515]
[1741139555356,8.9e-05,144.94,144.93,120.98564829]
[1741139555529,8.9e-05,144.94,144.93,120.70132515]
[1741139556438,8.9e-05,144.94,144.93,25.72552515]
[1741139556635,8.9e-05,144.94,144.92,25.72552515]
[1741139556939,8.9e-05,144.94,144.9,25.72552515]
[1741139557140,8.9e-05,144.94,144.89,25.72552515]
[1741139557449,32.62532515,144.93,144.87,25.72552515]
[1741139557867,25.72552515,144.92,144.86,25.72552515]
[1741139558027,25.72552515,144.91,144.85,25.72552515]
[1741139558233,25.72552515,144.92,144.86,25.72552515]
[1741139559169,32.62632515,144.91,144.85,25.72552515]
[1741139559338,25.72552515,144.87,144.81,25.72552515]
[1741139559535,25.72552515,144.87,144.78,6.907]
[1741139559870,25.72552515,144.87,144.81,25.72552515]
[1741139560073,25.72552515,144.87,144.78,6.907]
[1741139560239,25.72552515,144.86,144.8,25.72552515]
[1741139560441,32.62852515,144.87,144.81,25.72552515]
[1741139560640,48.67488061,144.87,144.81,41.77188061]
[1741139560939,41.77188061,144.85,144.79,41.77188061]
[1741139561469,41.77188061,144.84,144.77,81.6]
[1741139561765,41.77188061,144.84,144.78,41.77188061]
[1741139562477,41.77188061,144.83,144.77,41.77188061]
[1741139562682,41.77188061,144.81,144.75,41.77188061]
[1741139562970,41.77188061,144.8,144.74,41.77188061]
[1741139563466,41.77188061,144.8,144.7,7.19512314]
[1741139563768,41.77188061,144.8,144.74,41.77188061]
[1741139564066,41.77188061,144.79,144.73,41.77188061]
[1741139565039,41.77188061,144.79,144.74,6.9089]
[1741139566094,41.77188061,144.8,144.78,0.033]
[1741139567071,267.06270375,144.79,144.69,41.80488061]
[1741139567281,41.77188061,144.75,144.69,41.80488061]
[1741139567839,41.77188061,144.76,144.7,41.77188061]
[1741139569250,218.1,144.78,144.73,41.77188061]
[1741139569447,81.8,144.78,144.73,41.77188061]
[1741139569771,41.77188061,144.77,144.71,41.77188061]
[1741139569972,123.57188061,144.78,144.72,41.77188061]
[1741139570159,81.8,144.78,144.73,41.77188061]
[1741139570359,81.8,144.78,144.74,41.77188061]
[1741139570579,48.67848061,144.79,144.73,41.77188061]
[1741139570871,41.77188061,144.77,144.71,41.77188061]
[1741139571078,41.77188061,144.78,144.72,41.77188061]
[1741139571556,48.67928061,144.78,144.72,41.77188061]
[1741139572378,48.67848061,144.79,144.73,41.77188061]
[1741139572568,41.77188061,144.76,144.69,0.033]
[1741139572762,43.36128061,144.75,144.69,41.80488061]
[1741139573076,41.77188061,144.74,144.69,0.033]
[1741139573367,1.5894,144.75,144.7,41.77188061]
[1741139573595,8.4978,144.75,144.71,41.77188061]
[1741139573749,1.5894,144.75,144.7,41.77188061]
[1741139574072,225.0075,144.77,144.72,41.77188061]
[1741139574280,48.67898061,144.78,144.72,41.77188061]
[1741139574446,52.1444368,144.78,144.71,41.77188061]
[1741139575140,41.77188061,144.77,144.71,41.77188061]
[1741139575682,6.9079,144.76,144.71,41.77188061]
[1741139576250,41.77188061,144.74,144.69,0.033]
[1741139577869,6.9094,144.73,144.69,0.033]
[1741139578991,48.68128061,144.73,144.69,0.033]
[1741139579174,6.9094,144.73,144.69,0.033]
[1741139579371,6.9094,144.73,144.66,0.033]
[1741139579372,0.14216157,144.69,144.66,0.033]
[1741139579565,41.77188061,144.67,144.66,0.033]
[1741139579892,41.77188061,144.68,144.66,0.033]
[1741139580058,48.68368061,144.68,144.66,0.033]
[1741139580256,221.48263355,144.69,144.66,0.033]
[1741139580596,41.77188061,144.68,144.66,0.033]
[1741139580964,228.39413355,144.69,144.66,0.033]
[1741139581862,3.38263355,144.69,144.66,0.033]
[1741139582058,81.8,144.7,144.67,41.77188061]
[1741139582295,81.8,144.7,144.68,41.77188061]
[1741139582461,81.8,144.7,144.67,41.77188061]
[1741139582666,88.7109,144.7,144.66,25.78795545]
[1741139584687,81.8,144.73,144.69,25.75495545]
[1741139586282,88.7094,144.73,144.68,25.75495545]
[1741139586589,25.75495545,144.72,144.66,25.78795545]
[1741139586776,107.55495545,144.71,144.66,0.033]
[1741139586974,81.8,144.71,144.66,25.78795545]
[1741139587860,81.8,144.71,144.67,25.75495545]
[1741139588613,81.8,144.71,144.69,25.75495545]
[1741139588773,85.25924372,144.74,144.69,25.75495545]
[1741139589490,81.8,144.74,144.69,25.75495545]
[1741139589785,81.8,144.74,144.7,25.75495545]
[1741139589992,81.8,144.74,144.71,25.75495545]
[1741139590178,5.04616284,144.76,144.71,25.75495545]
[1741139590560,5.04616284,144.76,144.71,32.66485545]
[1741139591185,5.04616284,144.76,144.71,6.9099]
[1741139591394,5.04616284,144.76,144.7,25.75495545]
[1741139591995,1.6536,144.76,144.71,25.75495545]
[1741139592505,34.31655545,144.76,144.7,25.75495545]
[1741139592700,0.03,144.71,144.69,25.75495545]
[1741139592880,0.03,144.71,144.7,25.75495545]
[1741139594407,0.03,144.71,144.69,25.75495545]
[1741139594910,0.03,144.71,144.7,25.75495545]
[1741139597604,0.03,144.71,144.69,25.75495545]
[1741139597786,0.03,144.71,144.7,25.75495545]
[1741139598098,0.03,144.71,144.69,6.9112]
[1741139598299,0.03,144.71,144.7,25.75495545]
[1741139598900,0.03,144.71,144.7,32.66575545]
[1741139604201,0.03,144.71,144.7,114.26575545]
[1741139605020,0.03,144.71,144.68,17.2793]
[1741139605021,0.03,144.71,144.68,25.75495545]
[1741139605222,0.03,144.71,144.66,87.6766]
[1741139605223,0.03,144.71,144.69,25.75495545]
[1741139606017,0.03,144.71,144.69,32.66585545]
[1741139606211,0.03,144.71,144.7,25.75495545]
[1741139607309,0.03,144.71,144.68,25.75495545]
[1741139608309,0.03,144.71,144.68,32.66665545]
[1741139608509,0.03,144.71,144.69,25.75495545]
[1741139608710,0.03,144.71,144.7,25.75495545]
[1741139610134,0.03,144.71,144.7,32.66575545]
[1741139610319,0.03,144.71,144.69,25.75495545]
[1741139611007,0.03,144.71,144.68,107.35495545]
[1741139611207,0.03,144.71,144.68,114.26665545]
[1741139612034,0.03,144.71,144.68,25.75495545]
[1741139612238,0.03,144.71,144.66,25.78795545]
[1741139612422,0.03,144.71,144.67,25.75495545]
[1741139612621,0.03,144.71,144.68,25.75495545]
[1741139613739,0.03,144.71,144.69,25.75495545]
[1741139615722,0.03,144.71,144.69,32.66585545]
[1741139617629,0.03,144.71,144.7,25.75495545]
[1741139617836,0.03,144.71,144.68,0.033]
[1741139618030,107.55495545,144.7,144.68,0.033]
[1741139618231,81.8,144.7,144.68,0.033]
[1741139619339,0.03,144.71,144.68,25.78795545]
[1741139619920,0.03,144.71,144.69,32.66625545]
[1741139620125,0.03,144.71,144.7,25.75495545]
[1741139620714,0.03,144.71,144.68,25.78795545]
[1741139620929,0.03,144.71,144.68,32.69965545]
[1741139621323,0.03,144.71,144.69,25.75495545]
[1741139621526,0.03,144.71,144.7,25.75495545]
[1741139621839,0.03,144.71,144.7,32.66575545]
[1741139622819,0.03,144.71,144.7,25.75495545]
[1741139623738,0.03,144.71,144.7,32.66575545]
[1741139625120,6.0594,144.79,144.7,114.55007859]
[1741139625314,7.2443,144.8,144.76,25.75495545]
[1741139625844,7.2443,144.8,144.77,25.75495545]
[1741139626166,1.6243,144.8,144.77,25.75495545]
[1741139626323,25.75495545,144.79,144.73,25.75495545]
[1741139626641,107.55495545,144.79,144.73,25.75495545]
[1741139627140,25.75495545,144.77,144.71,25.75495545]
[1741139628346,6.9079,144.76,144.71,25.75495545]
[1741139628542,88.7079,144.76,144.71,25.75495545]
[1741139629346,120.74485545,144.76,144.69,25.75495545]
[1741139629639,25.75495545,144.75,144.69,25.75495545]
[1741139630052,25.75495545,144.74,144.68,25.78795545]
[1741139631158,25.75495545,144.69,144.68,0.033]
[1741139631833,162.05495545,144.71,144.68,0.033]
[1741139632031,107.55495545,144.71,144.68,0.033]
[1741139632548,81.8,144.71,144.68,0.033]
[1741139632756,81.8,144.72,144.68,0.033]
[1741139632933,81.8,144.72,144.68,25.78795545]
[1741139633133,1.6125,144.73,144.7,25.75495545]
[1741139633350,81.8,144.75,144.7,25.75495545]
[1741139633684,81.8,144.75,144.71,25.75495545]
[1741139633846,219.6724,144.77,144.73,25.75495545]
[1741139634033,83.3724,144.77,144.73,25.75495545]
[1741139634435,87.42,144.79,144.75,25.75495545]
[1741139635039,87.42,144.79,144.74,25.75495545]
[1741139636176,87.14046464,144.79,144.74,25.75495545]
[1741139636363,87.14046464,144.79,144.74,32.66385545]
[1741139637459,0.03,144.8,144.76,25.75495545]
[1741139637645,0.03,144.8,144.78,25.75495545]
[1741139637950,0.03,144.8,144.77,25.75495545]
[1741139638744,0.03,144.8,144.75,25.75495545]
[1741139638958,25.78495545,144.8,144.74,81.6]
[1741139639261,25.78495545,144.8,144.74,114.26365545]
[1741139639458,25.78495545,144.8,144.74,107.35495545]
[1741139640163,25.75495545,144.79,144.74,81.6]
[1741139640657,25.75495545,144.78,144.72,25.75495545]
[1741139641356,107.55495545,144.79,144.73,25.75495545]
[1741139642145,6.907,144.78,144.73,25.75495545]
[1741139642342,81.8,144.79,144.74,25.75495545]
[1741139643564,81.8,144.79,144.76,25.75495545]
[1741139643867,81.8,144.78,144.73,25.75495545]
[1741139644857,81.8,144.78,144.75,25.75495545]
[1741139645165,81.8,144.78,144.7,105.7879]
[1741139645361,81.83,144.8,144.75,25.75495545]
[1741139645542,81.83,144.8,144.76,25.75495545]
[1741139646766,88.7362,144.8,144.74,25.75495545]
[1741139647569,114.49115545,144.8,144.7,81.6]
[1741139647741,25.75495545,144.78,144.68,98.9118]
[1741139647939,25.75495545,144.76,144.69,25.75495545]
[1741139648270,107.55495545,144.75,144.69,25.75495545]
[1741139648460,81.8,144.74,144.69,25.75495545]
[1741139648698,81.8,144.74,144.7,25.75495545]
[1741139649184,81.8,144.74,144.69,32.66605545]
[1741139649771,88.7089,144.74,144.69,32.66605545]
[1741139650165,81.8,144.74,144.69,32.66605545]
[1741139650474,81.8,144.74,144.72,25.75495545]
[1741139650760,81.8,144.76,144.72,25.75495545]
[1741139650960,81.8,144.76,144.73,25.75495545]
[1741139651156,81.8,144.76,144.75,25.75495545]
[1741139651466,81.8,144.79,144.75,25.75495545]
[1741139651642,0.03,144.8,144.77,25.75495545]
[1741139652052,0.03,144.8,144.78,25.75495545]
[1741139652546,0.03,144.8,144.77,25.75495545]
[1741139653672,0.03,144.8,144.75,25.75495545]
[1741139653879,81.8,144.79,144.74,25.75495545]
[1741139654344,81.8,144.79,144.7,88.5107]
[1741139654543,81.8,144.78,144.72,25.75495545]
[1741139654746,107.55495545,144.78,144.72,25.75495545]
[1741139654968,81.8,144.78,144.73,25.75495545]
[1741139655146,81.8,144.78,144.74,25.75495545]
[1741139655358,88.707,144.78,144.74,25.75495545]
[1741139656082,114.46195545,144.78,144.72,25.75495545]
[1741139656288,25.75495545,144.75,144.68,0.033]
[1741139656447,25.75495545,144.73,144.68,0.033]
[1741139656765,107.55495545,144.73,144.68,0.033]
[1741139656976,81.8,144.73,144.68,25.78795545]
[1741139657270,81.8,144.73,144.7,25.75495545]
[1741139658085,81.8,144.73,144.68,25.78795545]
[1741139658086,88.7096,144.73,144.68,25.78795545]
[1741139658585,81.8,144.73,144.68,25.78795545]
[1741139658875,27.35685545,144.74,144.68,25.78795545]
[1741139659171,6.9094,144.73,144.68,0.033]
[1741139659372,34.26585545,144.74,144.68,0.033]
[1741139659558,83.4019,144.74,144.7,25.75495545]
[1741139659752,83.4019,144.74,144.71,25.75495545]
[1741139659950,83.4019,144.74,144.72,25.75495545]
[1741139659951,81.8,144.74,144.72,25.75495545]
[1741139660356,81.8,144.77,144.73,25.75495545]
[1741139660671,81.8,144.77,144.74,25.75495545]
[1741139660856,81.8,144.77,144.73,25.75495545]
[1741139661771,81.8,144.77,144.74,25.75495545]
[1741139662068,81.8,144.77,144.73,25.75495545]
[1741139662855,88.7075,144.77,144.72,25.75495545]
[1741139663056,114.46245545,144.77,144.7,25.75495545]
[1741139663369,81.8,144.76,144.7,25.75495545]
[1741139663570,6.9084,144.75,144.72,0.033]
[1741139663769,81.8,144.74,144.72,0.033]
[1741139663968,6.9084,144.75,144.72,0.033]
[1741139663969,107.55495545,144.73,144.72,0.033]
[1741139664274,81.8,144.73,144.72,0.033]
[1741139664485,107.55495545,144.73,144.72,0.033]
[1741139664779,25.75495545,144.73,144.72,0.033]
[1741139665581,34.51107859,144.73,144.72,0.033]
[1741139666363,34.51107859,144.73,144.68,0.033]
[1741139666687,6.1128,144.71,144.68,0.033]
[1741139666852,25.75495545,144.7,144.68,0.033]